bitfinex-derivatives/quotes_BNBF0:USTF0_20260110
["timestamp","ask_amount","ask_price","bid_price","bid_amount"]
[1768025809446,0.19122875,910.68,909.3,1.457]
[1768025810445,0.19122875,910.68,908.52,0.82235441]
[1768025810646,0.19122875,910.68,908.53,0.70048033]
[1768025810842,0.19122875,910.68,908.54,0.70048033]
[1768025811042,0.19122875,910.68,908.55,0.70048033]
[1768025811243,0.19122875,910.68,908.56,0.70048033]
[1768025811543,0.19122875,910.68,908.57,0.70048033]
[1768025811743,0.19122875,910.68,908.58,0.70048033]
[1768025812043,0.19122875,910.68,908.59,0.70048033]
[1768025812250,0.19122875,910.68,908.6,0.70048033]
[1768025812446,0.19122875,910.68,908.61,0.70048033]
[1768025812645,0.19122875,910.68,908.62,0.70048033]
[1768025812845,0.19122875,910.68,908.5,0.82235441]
[1768025812846,0.19122875,910.68,908.63,0.70048033]
[1768025813046,0.19122875,910.68,908.64,0.70048033]
[1768025813246,0.19122875,910.68,908.65,0.70048033]
[1768025813449,0.19122875,910.68,908.66,0.70048033]
[1768025813648,0.19122875,910.68,908.67,0.70048033]
[1768025813847,0.19122875,910.68,908.68,0.70048033]
[1768025814049,0.19122875,910.68,908.69,0.70048033]
[1768025814252,0.19122875,910.68,908.7,0.70048033]
[1768025814452,0.19122875,910.68,908.71,0.70048033]
[1768025814648,0.19122875,910.68,908.72,0.70048033]
[1768025814853,0.19122875,910.68,908.73,0.70048033]
[1768025815052,0.19122875,910.68,908.74,0.70048033]
[1768025815349,0.19122875,910.68,908.7,1.898]
[1768025815553,0.19122875,910.68,908.71,0.69969561]
[1768025815848,0.19122875,910.68,908.72,0.69969561]
[1768025816048,0.19122875,910.68,908.73,0.69969561]
[1768025816249,0.19122875,910.68,908.7,1.898]
[1768025816549,0.19122875,910.68,908.71,0.69959814]
[1768025816753,0.19122875,910.68,908.72,0.69959814]
[1768025816953,0.19122875,910.68,908.73,0.69959814]
[1768025817155,0.19122875,910.68,908.7,1.898]
[1768025817452,0.19122875,910.68,908.71,0.69952941]
[1768025817651,0.19122875,910.68,908.72,0.69952941]
[1768025817855,0.19122875,910.68,908.73,0.69952941]
[1768025818050,0.19122875,910.68,908.7,1.898]
[1768025818755,2.75675331,910.59,908.7,1.898]
[1768025819352,2.75675331,910.61,908.7,1.898]
[1768025821057,0.19122875,910.68,908.71,0.69930249]
[1768025821258,0.19122875,910.68,908.72,0.69930249]
[1768025821458,0.19122875,910.68,908.73,0.69930249]
[1768025821657,0.19122875,910.68,908.7,1.898]
[1768025821860,0.19122875,910.68,908.71,0.6992406]
[1768025822158,0.19122875,910.68,908.72,0.6992406]
[1768025822357,0.19122875,910.68,908.73,0.6992406]
[1768025822558,0.19122875,910.68,908.74,0.6992406]
[1768025822758,0.19122875,910.68,908.75,0.6992406]
[1768025822956,0.19122875,910.68,908.76,0.6992406]
[1768025823263,0.19122875,910.68,908.77,0.6992406]
[1768025823461,0.19122875,910.68,908.78,0.6992406]
[1768025823658,0.19122875,910.68,908.79,0.6992406]
[1768025823862,0.19122875,910.68,908.8,0.6992406]
[1768025824060,0.19122875,910.68,908.81,0.6992406]
[1768025824259,0.19122875,910.68,908.82,0.6992406]
[1768025824562,0.19122875,910.68,908.83,0.6992406]
[1768025824862,0.19122875,910.68,908.84,0.6992406]
[1768025825062,0.19122875,910.68,908.85,0.6992406]
[1768025825264,0.19122875,910.68,908.86,0.6992406]
[1768025825563,0.19122875,910.68,908.87,0.6992406]
[1768025825764,0.19122875,910.68,908.75,4.22852207]
[1768025825966,0.19122875,910.68,908.76,0.69913379]
[1768025826165,0.19122875,910.68,908.77,0.69913379]
[1768025826366,0.19122875,910.68,908.78,0.69913379]
[1768025826662,0.19122875,910.68,908.79,0.69913379]
[1768025826863,0.19122875,910.68,908.8,0.69913379]
[1768025827066,0.19122875,910.68,908.81,0.69913379]
[1768025827267,0.19122875,910.68,908.82,0.69913379]
[1768025827467,0.19122875,910.68,908.83,0.69913379]
[1768025827664,0.19122875,910.68,908.84,0.69913379]
[1768025827967,0.19122875,910.68,908.85,0.69913379]
[1768025828165,0.19122875,910.68,908.86,0.69913379]
[1768025828370,0.19122875,910.68,908.87,0.69913379]
[1768025828670,0.19122875,910.68,908.88,0.69913379]
[1768025828870,0.19122875,910.68,908.89,0.69913379]
[1768025829071,0.19122875,910.68,908.75,4.22852207]
[1768025829271,0.19122875,910.68,908.76,0.69932227]
[1768025829469,0.19122875,910.68,908.77,0.69932227]
[1768025829668,0.19122875,910.68,908.78,0.69932227]
[1768025829868,0.19122875,910.68,908.79,0.69932227]
[1768025830067,0.19122875,910.68,908.8,0.69932227]
[1768025830272,0.19122875,910.68,908.81,0.69932227]
[1768025830470,0.19122875,910.68,908.82,0.69932227]
[1768025830668,0.19122875,910.68,908.83,0.69932227]
[1768025830867,0.19122875,910.68,908.84,0.69932227]
[1768025831071,0.19122875,910.68,908.85,0.69932227]
[1768025831269,0.19122875,910.68,908.86,0.69932227]
[1768025831468,0.19122875,910.68,908.87,0.69932227]
[1768025831672,0.19122875,910.68,908.88,0.69932227]
[1768025831869,0.19122875,910.68,908.89,0.69932227]
[1768025832073,0.19122875,910.68,908.9,0.69932227]
[1768025832369,0.19122875,910.68,908.75,4.22852207]
[1768025832674,0.19122875,910.68,908.76,0.69969402]
[1768025832974,0.19122875,910.68,908.77,0.69969402]
[1768025833169,0.19122875,910.68,908.78,0.69969402]
[1768025833469,0.19122875,910.68,908.79,0.69969402]
[1768025833673,0.19122875,910.68,908.8,0.69969402]
[1768025833870,0.19122875,910.68,908.81,0.69969402]
[1768025834072,0.19122875,910.68,908.82,0.69969402]
[1768025834371,0.19122875,910.68,908.83,0.69969402]
[1768025834672,0.19122875,910.68,908.84,0.69969402]
[1768025834876,0.19122875,910.68,908.85,0.69969402]
[1768025835072,0.19122875,910.68,908.86,0.69969402]
[1768025835371,0.19122875,910.68,908.87,0.69969402]
[1768025835573,0.19122875,910.68,908.88,0.69969402]
[1768025835772,0.19122875,910.68,908.89,0.69969402]
[1768025836076,0.19122875,910.68,908.9,0.69969402]
[1768025836372,0.19122875,910.68,908.91,0.69969402]
[1768025836576,0.19122875,910.68,908.92,0.69969402]
[1768025836776,0.19122875,910.68,908.93,0.69969402]
[1768025836975,0.19122875,910.68,908.94,0.69969402]
[1768025837179,0.19122875,910.68,908.95,0.69969402]
[1768025837378,0.19122875,910.68,908.96,0.69969402]
[1768025837574,0.19122875,910.68,908.97,0.69969402]
[1768025837874,0.19122875,910.68,908.98,0.69969402]
[1768025838078,0.19122875,910.68,908.99,0.69969402]
[1768025838380,0.19122875,910.68,909.0,0.69969402]
[1768025838579,0.19122875,910.68,909.01,0.69969402]
[1768025838880,0.19122875,910.68,908.75,4.22852207]
[1768025839079,0.19122875,910.68,908.76,0.70109049]
[1768025839280,0.19122875,910.68,908.77,0.70109049]
[1768025839474,0.19122875,910.68,908.78,0.70109049]
[1768025839677,0.19122875,910.68,908.79,0.70109049]
[1768025839879,0.19122875,910.68,908.8,0.70109049]
[1768025840078,0.19122875,910.68,908.81,0.70109049]
[1768025840381,0.19122875,910.68,908.82,0.70109049]
[1768025840578,0.19122875,910.68,908.83,0.70109049]
[1768025840881,0.19122875,910.68,908.84,0.70109049]
[1768025841080,0.19122875,910.68,908.85,0.70109049]
[1768025841278,0.19122875,910.68,908.86,0.70109049]
[1768025841476,0.19122875,910.68,908.87,0.70109049]
[1768025841680,0.19122875,910.68,908.88,0.70109049]
[1768025841878,0.19122875,910.68,908.89,0.70109049]
[1768025842078,0.19122875,910.68,908.9,0.70109049]
[1768025842279,0.19122875,910.68,908.91,0.70109049]
[1768025842480,0.19122875,910.68,908.92,0.70109049]
[1768025842679,0.19122875,910.68,908.93,0.70109049]
[1768025842882,0.19122875,910.68,908.94,0.70109049]
[1768025843083,0.19122875,910.68,908.95,0.70109049]
[1768025843284,0.19122875,910.68,908.96,0.70109049]
[1768025843487,0.19122875,910.68,908.97,0.70109049]
[1768025843683,0.19122875,910.68,908.98,0.70109049]
[1768025843988,0.19122875,910.68,908.99,0.70237558]
[1768025844184,0.19122875,910.68,909.0,0.70237558]
[1768025844389,0.19122875,910.68,909.01,0.70237558]
[1768025844588,0.19122875,910.68,909.02,0.70237558]
[1768025844787,0.19122875,910.68,909.03,0.70237558]
[1768025844988,0.19122875,910.68,909.04,0.70237558]
[1768025845188,0.19122875,910.68,909.05,0.70237558]
[1768025845384,0.19122875,910.68,909.06,0.70237558]
[1768025845587,0.19122875,910.68,909.07,0.70237558]
[1768025845891,0.19122875,910.68,908.78,0.82272863]
[1768025846087,0.19122875,910.68,908.79,0.70253844]
[1768025846289,0.19122875,910.68,908.8,0.70253844]
[1768025846494,0.19122875,910.68,908.81,0.70253844]
[1768025846692,0.19122875,910.68,908.82,0.70253844]
[1768025846890,0.19122875,910.68,908.83,0.70253844]
[1768025847088,0.19122875,910.68,908.84,0.70253844]
[1768025847392,0.19122875,910.68,908.85,0.70253844]
[1768025847589,0.19122875,910.68,908.86,0.70253844]
[1768025847788,0.19122875,910.68,908.87,0.70253844]
[1768025848090,0.19122875,910.68,908.88,0.70253844]
[1768025848288,0.19122875,910.68,908.89,0.70253844]
[1768025848593,0.19122875,910.68,908.9,0.70253844]
[1768025848893,0.19122875,910.68,908.91,0.70253844]
[1768025849093,0.19122875,910.68,908.92,0.70253844]
[1768025849289,0.19122875,910.68,908.93,0.70253844]
[1768025849491,0.19122875,910.68,908.94,0.70253844]
[1768025849691,0.19122875,910.68,908.95,0.70253844]
[1768025849892,0.19122875,910.68,908.96,0.70253844]
[1768025850192,0.19122875,910.68,908.97,0.70253844]
[1768025850395,0.19122875,910.68,908.98,0.70253844]
[1768025850596,0.19122875,910.68,908.99,0.70253844]
[1768025850796,0.19122875,910.68,909.0,0.70253844]
[1768025850997,0.19122875,910.68,909.01,0.70253844]
[1768025851292,0.19122875,910.68,909.02,0.70253844]
[1768025851497,0.19122875,910.68,909.03,0.70253844]
[1768025851696,0.19122875,910.68,909.04,0.70253844]
[1768025851893,0.19122875,910.68,909.05,0.70253844]
[1768025852093,0.19122875,910.68,909.06,0.70253844]
[1768025852294,0.19122875,910.68,909.07,0.70253844]
[1768025852497,0.19122875,910.68,909.08,0.70253844]
[1768025852697,0.19122875,910.68,908.89,1.51]
[1768025852999,0.19122875,910.68,908.9,0.70263784]
[1768025853197,0.19122875,910.68,908.91,0.70263784]
[1768025853396,0.19122875,910.68,908.92,0.70263784]
[1768025853697,0.19122875,910.68,908.93,0.70263784]
[1768025853894,0.19122875,910.68,908.94,0.70263784]
[1768025854197,0.19122875,910.68,908.95,0.70263784]
[1768025854392,0.19122875,910.68,908.96,0.70263784]
[1768025854597,0.19122875,910.68,908.97,0.70263784]
[1768025854897,0.19122875,910.68,908.89,1.51]
[1768025854898,0.19122875,910.68,908.98,0.70263784]
[1768025855098,0.19122875,910.68,908.99,0.70263784]
[1768025855298,0.19122875,910.68,909.0,0.70263784]
[1768025855500,0.19122875,910.68,909.01,0.70263784]
[1768025855697,0.19122875,910.68,909.02,0.70263784]
[1768025855898,0.19122875,910.68,909.03,0.70263784]
[1768025856098,0.19122875,910.68,909.04,0.70263784]
[1768025856300,0.19122875,910.68,909.05,0.70263784]
[1768025856498,0.19122875,910.68,909.06,0.70263784]
[1768025856795,0.19122875,910.68,908.89,1.51]
[1768025856796,0.19122875,910.68,909.07,0.70263784]
[1768025856995,0.19122875,910.68,909.08,0.70263784]
[1768025857295,0.19122875,910.68,909.09,0.70263784]
[1768025857595,0.19122875,910.68,909.1,0.70263784]
[1768025857799,0.19122875,910.68,909.11,0.70263784]
[1768025857998,0.19122875,910.68,908.89,1.51]
[1768025858199,0.19122875,910.68,908.9,0.7027972]
[1768025858395,0.19122875,910.68,908.91,0.7027972]
[1768025858600,0.19122875,910.68,908.92,0.7027972]
[1768025858799,0.19122875,910.68,908.93,0.7027972]
[1768025858996,0.19122875,910.68,908.94,0.7027972]
[1768025859295,0.19122875,910.68,908.95,0.7027972]
[1768025859601,0.19122875,910.68,908.96,0.7027972]
[1768025859799,0.19122875,910.68,908.97,0.7027972]
[1768025859998,0.19122875,910.68,908.98,0.7027972]
[1768025860196,0.19122875,910.68,908.99,0.7027972]
[1768025860395,0.19122875,910.68,909.0,0.7027972]
[1768025860597,0.19122875,910.68,909.01,0.7027972]
[1768025860896,0.19122875,910.68,909.02,0.7027972]
[1768025861201,0.19122875,910.68,909.03,0.7027972]
[1768025861400,0.19122875,910.68,909.04,0.7027972]
[1768025861597,0.19122875,910.68,909.05,0.7027972]
[1768025861800,0.19122875,910.68,909.06,0.7027972]
[1768025862000,0.19122875,910.68,909.07,0.7027972]
[1768025862197,0.19122875,910.68,909.08,0.7027972]
[1768025862401,0.19122875,910.68,909.09,0.7027972]
[1768025862697,0.19122875,910.68,909.1,0.7027972]
[1768025862897,0.19122875,910.68,909.11,0.7027972]
[1768025863099,0.19122875,910.68,908.89,1.51]
[1768025863297,0.19122875,910.68,908.9,0.70308361]
[1768025863500,0.19122875,910.68,908.91,0.70308361]
[1768025863796,0.19122875,910.68,908.92,0.70308361]
[1768025863999,0.19122875,910.68,908.93,0.70308361]
[1768025864200,2.75675331,910.67,908.94,0.70308361]
[1768025864403,2.75675331,910.67,908.95,0.70308361]
[1768025864699,2.75675331,910.67,908.96,0.70308361]
[1768025864898,2.75675331,910.67,908.97,0.70308361]
[1768025865203,2.75675331,910.67,908.98,0.70308361]
[1768025865500,2.94798206,910.68,908.99,0.70308361]
[1768025865703,2.94798206,910.68,909.0,0.70308361]
[1768025866003,2.94798206,910.68,909.01,0.70308361]
[1768025866299,2.75675331,910.67,909.02,0.70308361]
[1768025866499,2.75675331,910.67,909.03,0.70308361]
[1768025866699,2.75675331,910.67,909.04,0.70308361]
[1768025866902,2.75675331,910.67,909.05,0.70308361]
[1768025867099,2.75675331,910.67,909.06,0.70308361]
[1768025867304,0.19122875,910.68,909.07,0.70308361]
[1768025867305,2.75675331,910.65,909.07,0.70308361]
[1768025867504,2.75675331,910.65,909.08,0.70308361]
[1768025867700,2.75675331,910.65,909.09,0.70308361]
[1768025867904,2.75675331,910.65,909.1,0.70308361]
[1768025868105,2.75675331,910.65,909.11,0.70308361]
[1768025868301,2.75675331,910.65,909.12,0.70308361]
[1768025868504,2.75675331,910.66,909.13,0.70308361]
[1768025868703,2.75675331,910.66,909.14,0.70308361]
[1768025869006,2.75675331,910.66,909.15,0.70308361]
[1768025869205,2.75675331,910.66,909.16,0.70308361]
[1768025869406,2.75675331,910.66,909.17,0.70308361]
[1768025869603,2.75675331,910.66,908.89,1.51]
[1768025869903,2.75675331,910.66,908.9,0.70339808]
[1768025870104,2.75675331,910.66,908.91,0.70339808]
[1768025870302,2.75675331,910.66,908.92,0.70339808]
[1768025870506,2.75675331,910.66,908.93,0.70339808]
[1768025870707,2.75675331,910.66,908.94,0.70339808]
[1768025870907,2.75675331,910.66,908.95,0.70339808]
[1768025871202,2.75675331,910.66,908.96,0.70339808]
[1768025871407,2.75675331,910.66,908.97,0.70339808]
[1768025871607,2.75675331,910.66,908.98,0.70339808]
[1768025871802,2.75675331,910.66,908.99,0.70339808]
[1768025872007,2.75675331,910.66,909.0,0.70339808]
[1768025872208,2.75675331,910.66,909.01,0.70339808]
[1768025872503,2.75675331,910.66,909.02,0.70339808]
[1768025872707,2.75675331,910.66,909.03,0.70339808]
[1768025872907,2.75675331,910.66,909.04,0.70339808]
[1768025873208,2.75675331,910.66,909.05,0.70339808]
[1768025873406,2.75675331,910.66,909.06,0.70339808]
[1768025873603,0.19122875,910.68,909.07,0.70339808]
[1768025873807,0.19122875,910.68,909.08,0.70339808]
[1768025874004,0.19122875,910.68,909.09,0.70339808]
[1768025874209,0.19122875,910.68,909.1,0.70339808]
[1768025874407,0.19122875,910.68,909.11,0.70339808]
[1768025874607,0.19122875,910.68,909.12,0.70339808]
[1768025874807,0.19122875,910.68,909.13,0.70339808]
[1768025875006,0.19122875,910.68,909.14,0.70339808]
[1768025875211,0.19122875,910.68,909.15,0.70339808]
[1768025875412,0.19122875,910.68,909.16,0.70339808]
[1768025875612,0.19122875,910.68,909.17,0.70339808]
[1768025875809,0.19122875,910.68,909.18,0.70339808]
[1768025876012,0.19122875,910.68,909.19,0.70339808]
[1768025876212,0.19122875,910.68,909.2,0.70339808]
[1768025876414,0.19122875,910.68,908.91,0.82272863]
[1768025876612,0.19122875,910.68,908.92,0.70314676]
[1768025876811,0.19122875,910.68,908.93,0.70314676]
[1768025877011,0.19122875,910.68,908.94,0.70314676]
[1768025877211,0.19122875,910.68,908.95,0.70314676]
[1768025877410,0.19122875,910.68,908.96,0.70314676]
[1768025877615,0.19122875,910.68,908.91,0.82272863]
[1768025877616,0.19122875,910.68,908.97,0.70314676]
[1768025877810,0.19122875,910.68,908.98,0.70314676]
[1768025878110,0.19122875,910.68,908.99,0.70314676]
[1768025878315,0.19122875,910.68,909.0,0.70314676]
[1768025878515,0.19122875,910.68,909.01,0.70314676]
[1768025878810,0.19122875,910.68,909.02,0.70314676]
[1768025879015,0.19122875,910.68,909.03,0.70314676]
[1768025879212,0.19122875,910.68,909.04,0.70314676]
[1768025879416,0.19122875,910.68,909.05,0.70314676]
[1768025879616,0.19122875,910.68,909.06,0.70314676]
[1768025879815,0.19122875,910.68,909.07,0.70314676]
[1768025880013,0.19122875,910.68,909.08,0.70314676]
[1768025880213,0.19122875,910.68,909.09,0.70314676]
[1768025880515,0.19122875,910.68,909.1,0.70314676]
[1768025880717,0.19122875,910.68,909.11,0.70314676]
[1768025881017,0.19122875,910.68,909.12,0.70314676]
[1768025881217,0.19122875,910.68,909.13,0.70314676]
[1768025881413,0.19122875,910.68,909.14,0.70314676]
[1768025881715,0.19122875,910.68,909.15,0.70314676]
[1768025881913,0.19122875,910.68,909.16,0.70314676]
[1768025882213,0.19122875,910.68,909.17,0.70314676]
[1768025882418,0.19122875,910.68,909.18,0.70314676]
[1768025882618,0.19122875,910.68,909.19,0.70314676]
[1768025882814,0.19122875,910.68,909.2,0.70314676]
[1768025883013,0.19122875,910.68,909.21,0.70292767]
[1768025883218,0.19122875,910.68,909.22,0.70292767]
[1768025883418,0.19122875,910.68,909.23,0.70292767]
[1768025883719,0.19122875,910.68,909.24,0.70292767]
[1768025883914,0.19122875,910.68,909.25,0.70292767]
[1768025884119,0.19122875,910.68,909.26,0.70292767]
[1768025884315,0.19122875,910.68,909.27,0.70292767]
[1768025884518,0.19122875,910.68,909.28,0.70292767]
[1768025884713,0.19122875,910.68,909.29,0.70292767]
[1768025884915,0.19122875,910.68,909.3,0.70292767]
[1768025885117,0.19122875,910.68,909.31,0.70292767]
[1768025885319,0.19122875,910.68,909.32,0.70292767]
[1768025885515,0.19122875,910.68,909.33,0.70292767]
[1768025885720,0.19122875,910.68,909.34,0.70292767]
[1768025885920,0.19122875,910.68,909.35,0.70292767]
[1768025886118,0.19122875,910.68,909.36,0.70292767]
[1768025886323,0.19122875,910.68,909.37,0.70292767]
[1768025886522,0.19122875,910.68,909.38,0.70292767]
[1768025886723,0.19122875,910.68,909.09,0.82272863]
[1768025886921,0.19122875,910.68,909.1,0.70140426]
[1768025887119,0.19122875,910.68,909.11,0.70140426]
[1768025887322,0.19122875,910.68,909.12,0.70140426]
[1768025887622,0.19122875,910.68,909.13,0.70140426]
[1768025887923,0.19122875,910.68,909.14,0.70140426]
[1768025888223,0.19122875,910.68,909.15,0.70140426]
[1768025888417,0.19122875,910.68,909.16,0.70140426]
[1768025888620,0.19122875,910.68,909.17,0.70140426]
[1768025888818,0.19122875,910.68,909.18,0.70140426]
[1768025889121,0.19122875,910.68,909.19,0.70140426]
[1768025889323,0.19122875,910.68,909.2,0.70140426]
[1768025889522,0.19122875,910.68,909.21,0.70140426]
[1768025889718,0.19122875,910.68,909.22,0.70140426]
[1768025889918,0.19122875,910.68,909.06,0.82272863]
[1768025889919,0.19122875,910.68,909.23,0.70140426]
[1768025890119,0.19122875,910.68,909.24,0.70140426]
[1768025890319,0.19122875,910.68,909.25,0.70140426]
[1768025890520,0.19122875,910.68,909.26,0.70140426]
[1768025890821,0.19122875,910.68,909.27,0.70140426]
[1768025891124,0.19122875,910.68,909.28,0.70140426]
[1768025891324,0.19122875,910.68,909.29,0.70140426]
[1768025891525,0.19122875,910.68,909.3,0.70140426]
[1768025891725,0.19122875,910.68,909.31,0.70140426]
[1768025891925,0.19122875,910.68,909.32,0.70140426]
[1768025892125,0.19122875,910.68,909.33,0.70140426]
[1768025892423,0.19122875,910.68,909.34,0.70140426]
[1768025892722,0.19122875,910.68,909.04,0.82272863]
[1768025893025,0.19122875,910.68,909.05,0.70061823]
[1768025893220,0.19122875,910.68,909.06,0.70061823]
[1768025893424,0.19122875,910.68,909.07,0.70061823]
[1768025893619,0.19122875,910.68,909.08,0.70061823]
[1768025893823,0.19122875,910.68,909.09,0.70061823]
[1768025894024,0.19122875,910.68,909.1,0.70061823]
[1768025894224,0.19122875,910.68,909.11,0.70061823]
[1768025894425,0.19122875,910.68,909.12,0.70061823]
[1768025894719,0.19122875,910.68,909.13,0.70061823]
[1768025894920,0.19122875,910.68,909.14,0.70061823]
[1768025895121,0.19122875,910.68,909.15,0.70061823]
[1768025895325,0.19122875,910.68,908.86,0.82272863]
[1768025895519,0.19122875,910.68,908.87,0.70092942]
[1768025895825,0.19122875,910.68,908.88,0.70092942]
[1768025896018,0.19122875,910.68,908.89,0.70092942]
[1768025896222,0.19122875,910.68,908.9,0.70092942]
[1768025896522,0.19122875,910.68,908.91,0.70092942]
[1768025896726,0.19122875,910.68,908.92,0.70092942]
[1768025896928,0.19122875,910.68,908.93,0.70092942]
[1768025897122,0.19122875,910.68,908.94,0.70092942]
[1768025897327,0.19122875,910.68,908.95,0.70092942]
[1768025897526,0.19122875,910.68,908.96,0.70092942]
[1768025897726,0.19122875,910.68,908.97,0.70092942]
[1768025897924,0.19122875,910.68,908.98,0.70092942]
[1768025898124,0.19122875,910.68,908.99,0.70092942]
[1768025898325,0.19122875,910.68,909.0,0.70092942]
[1768025898526,0.19122875,910.68,909.01,0.70092942]
[1768025898830,0.19122875,910.68,909.02,0.70092942]
[1768025899025,0.19122875,910.68,908.88,1.351]
[1768025899026,0.19122875,910.68,909.03,0.70092942]
[1768025899231,0.19122875,910.68,909.04,0.70092942]
[1768025899428,0.19122875,910.68,909.05,0.70092942]
[1768025899628,0.19122875,910.68,909.06,0.70092942]
[1768025899828,0.19122875,910.68,909.07,0.70092942]
[1768025900030,0.19122875,910.68,909.08,0.70092942]
[1768025900233,0.19122875,910.68,909.09,0.70092942]
[1768025900433,0.19122875,910.68,909.1,0.70092942]
[1768025900632,0.19122875,910.68,908.88,1.351]
[1768025900931,0.19122875,910.68,908.89,0.70288586]
[1768025901135,0.19122875,910.68,908.9,0.70288586]
[1768025901435,0.19122875,910.68,908.91,0.70288586]
[1768025901633,0.19122875,910.68,908.92,0.70288586]
[1768025901836,0.19122875,910.68,908.88,1.351]
[1768025901837,0.19122875,910.68,908.93,0.70288586]
[1768025902032,0.19122875,910.68,908.94,0.70288586]
[1768025902234,0.19122875,910.68,908.95,0.70288586]
[1768025902435,0.19122875,910.68,908.96,0.70288586]
[1768025902636,0.19122875,910.68,908.97,0.70288586]
[1768025902834,2.75675331,910.67,908.88,1.351]
[1768025903038,2.75675331,910.67,908.89,0.7031958]
[1768025903239,2.94798206,910.68,908.9,0.7031958]
[1768025903434,2.94798206,910.68,908.91,0.7031958]
[1768025903738,2.94798206,910.68,908.92,0.7031958]
[1768025903938,2.94798206,910.68,908.93,0.7031958]
[1768025904138,2.94798206,910.68,908.88,1.351]
[1768025904139,2.94798206,910.68,908.94,0.7031958]
[1768025904344,0.19122875,910.68,908.95,0.7031958]
[1768025904641,0.19122875,910.68,908.96,0.7031958]
[1768025904842,0.19122875,910.68,908.97,0.7031958]
[1768025905040,0.19122875,910.68,908.88,1.351]
[1768025905240,0.19122875,910.68,908.89,0.7030343]
[1768025905439,0.19122875,910.68,908.9,0.7030343]
[1768025905638,0.19122875,910.68,908.91,0.7030343]
[1768025905842,0.19122875,910.68,908.92,0.7030343]
[1768025906041,0.19122875,910.68,908.93,0.7030343]
[1768025906246,0.19122875,910.68,908.94,0.7030343]
[1768025906439,0.19122875,910.68,908.95,0.7030343]
[1768025906644,0.19122875,910.68,908.96,0.7030343]
[1768025906844,0.19122875,910.68,908.88,1.351]
[1768025907045,0.19122875,910.68,908.89,0.70290857]
[1768025907244,0.19122875,910.68,908.9,0.70290857]
[1768025907448,0.19122875,910.68,908.91,0.70290857]
[1768025907646,0.19122875,910.68,908.92,0.70290857]
[1768025907842,0.19122875,910.68,908.93,0.70290857]
[1768025908146,0.19122875,910.68,908.94,0.70290857]
[1768025908343,0.19122875,910.68,908.95,0.70290857]
[1768025908542,0.19122875,910.68,908.88,1.351]
[1768025908745,0.19122875,910.68,908.89,0.70277033]
[1768025908942,0.19122875,910.68,908.9,0.70277033]
[1768025909244,0.19122875,910.68,908.91,0.70277033]
[1768025909543,0.19122875,910.68,908.92,0.70277033]
[1768025909747,0.19122875,910.68,908.93,0.70277033]
[1768025909944,0.19122875,910.68,908.94,0.70277033]
[1768025910243,0.19122875,910.68,908.95,0.70277033]
[1768025910547,0.19122875,910.68,908.88,1.351]
[1768025910747,0.19122875,910.68,908.89,0.70264097]
[1768025910946,0.19122875,910.68,908.9,0.70264097]
[1768025911147,0.19122875,910.68,908.91,0.70264097]
[1768025911348,0.19122875,910.68,908.92,0.70264097]
[1768025911544,0.19122875,910.68,908.93,0.70264097]
[1768025911844,0.19122875,910.68,908.94,0.70264097]
[1768025912043,0.19122875,910.68,908.88,1.351]
[1768025912247,0.19122875,910.68,908.89,0.70259295]
[1768025912448,0.19122875,910.68,908.9,0.70259295]
[1768025912647,0.19122875,910.68,908.91,0.70259295]
[1768025912847,0.19122875,910.68,908.92,0.70259295]
[1768025913148,0.19122875,910.68,908.88,1.351]
[1768025913346,2.94798206,910.68,908.89,0.70253265]
[1768025913549,2.94798206,910.68,908.9,0.70253265]
[1768025913848,2.94798206,910.68,908.88,1.351]
[1768025914048,2.94798206,910.68,908.89,0.70251315]
[1768025914348,2.94798206,910.68,908.88,1.351]
[1768025914546,2.94798206,910.68,908.89,0.70246104]
[1768025914749,2.94798206,910.68,908.88,1.351]
[1768025914948,2.94798206,910.68,908.89,0.70246115]
[1768025915149,2.94798206,910.68,908.88,1.351]
[1768025915350,2.94798206,910.68,908.89,0.70242354]
[1768025915550,2.94798206,910.68,908.88,1.351]
[1768025915750,2.94798206,910.68,908.89,0.70241049]
[1768025915947,0.19122875,910.68,908.88,1.351]
[1768025916247,0.19122875,910.68,908.89,0.7024106]
[1768025916448,0.19122875,910.68,908.88,1.351]
[1768025916647,0.19122875,910.68,908.89,0.70236234]
[1768025916847,0.19122875,910.68,908.88,1.351]
[1768025917046,0.19122875,910.68,908.89,0.70236234]
[1768025917246,0.19122875,910.68,908.88,1.351]
[1768025917450,0.19122875,910.68,908.89,0.70232291]
[1768025917650,0.19122875,910.68,908.88,1.351]
[1768025917850,0.19122875,910.68,908.89,0.70231646]
[1768025918050,0.19122875,910.68,908.88,1.351]
[1768025923150,0.19122875,910.68,908.89,0.70207981]
[1768025923354,0.19122875,910.68,908.9,0.70207981]
[1768025923551,0.19122875,910.68,908.91,0.70207981]
[1768025923752,0.19122875,910.68,908.88,1.351]
[1768025923955,0.19122875,910.68,908.89,0.70203704]
[1768025924154,0.19122875,910.68,908.9,0.70203704]
[1768025924357,0.19122875,910.68,908.75,4.22852207]
[1768025924557,0.19122875,910.68,908.76,0.70200514]
[1768025924757,0.19122875,910.68,908.77,0.70200514]
[1768025925058,0.19122875,910.68,908.75,4.22852207]